bitfinex-derivatives/quotes_ETHF0:USTF0_20250326
["timestamp","ask_amount","ask_price","bid_price","bid_amount"]
[1742971335884,3.2078,2064.7,2064.6,0.96859]
[1742971336181,4.85637,2064.7,2064.6,0.96859]
[1742971336369,0.96859,2064.6,2064.5,3.0045]
[1742971336870,0.96859,2064.6,2064.5,2.29774]
[1742971338588,3.8878,2064.7,2064.6,0.96859]
[1742971338884,0.00727643,2064.8,2064.7,0.96854]
[1742971339086,0.00727643,2064.8,2064.7,1.61234]
[1742971339478,0.00727643,2064.8,2064.7,2.95544]
[1742971339880,0.00727643,2064.8,2064.7,2.31164]
[1742971340082,0.68017643,2064.8,2064.7,2.31164]
[1742971340879,0.00727643,2064.8,2064.7,2.31164]
[1742971341074,0.00727643,2064.8,2064.7,5.51944]
[1742971343990,0.6923,2065.3,2065.2,0.96831]
[1742971344186,0.6923,2065.3,2064.8,4.48881]
[1742971344385,1.6606,2065.3,2065.2,0.96831]
[1742971344988,0.96831,2065.2,2065.1,0.96832]
[1742971345189,1.66058,2065.3,2065.2,0.96831]
[1742971347194,0.6923,2065.3,2065.2,0.96831]
[1742971347596,0.6923,2065.3,2065.2,2.98851]
[1742971348287,3.2078,2065.5,2065.4,0.96821]
[1742971348495,3.118,2065.5,2065.4,0.96821]
[1742971348996,4.08617,2065.5,2065.4,0.96821]
[1742971349599,4.08617,2065.5,2065.3,2.33433]
[1742971350096,3.118,2065.5,2065.4,2.32971]
[1742971350290,4.4139,2065.5,2065.4,2.32971]
[1742971350794,2.26407,2065.5,2065.4,2.32971]
[1742971350992,2.26407,2065.5,2065.4,1.3615]
[1742971351196,2.26407,2065.5,2065.4,43.12971]
[1742971351495,1.2959,2065.5,2065.4,43.12971]
[1742971351794,1.2959,2065.5,2065.4,2.32971]
[1742971356897,2.26407,2065.5,2065.4,2.32971]
[1742971357190,1.2959,2065.5,2065.4,2.32971]
[1742971357397,1.2959,2065.5,2065.4,3.02251]
[1742971357591,2.26407,2065.5,2065.4,3.02251]
[1742971358289,2.26407,2065.5,2065.4,1.3615]
[1742971360299,2.26407,2065.5,2065.4,2.32971]
[1742971361300,1.2959,2065.5,2065.4,2.32971]
[1742971361691,1.2959,2065.5,2065.4,3.02411]
[1742971362502,2.26407,2065.5,2065.4,3.02411]
[1742971362801,1.2959,2065.5,2065.4,3.02411]
[1742971363003,2.26407,2065.5,2065.4,3.02411]
[1742971363705,1.2959,2065.5,2065.4,3.02411]
[1742971364098,2.26407,2065.5,2065.4,3.02411]
[1742971365595,1.2959,2065.5,2065.4,3.02411]
[1742971366102,1.2959,2065.5,2065.4,2.32971]
[1742971366496,2.26407,2065.5,2065.4,1.3615]
[1742971366998,0.96821,2065.4,2065.3,40.8]
[1742971367197,0.96821,2065.4,2065.3,42.0845]
[1742971367198,3.00941,2065.4,2065.3,42.0845]
[1742971368204,3.00941,2065.4,2065.3,43.05276]
[1742971373706,3.00941,2065.4,2065.3,42.0845]
[1742971374008,3.00941,2065.4,2064.9,0.96842]
[1742971374009,0.96843,2065.0,2064.9,0.96842]
[1742971374210,0.96843,2065.0,2064.9,1.2775]
[1742971374601,2.97303,2065.0,2064.9,1.2775]
[1742971374795,2.97303,2065.0,2064.9,2.24595]
[1742971375103,3.2078,2065.1,2065.0,0.9684]
[1742971375304,3.2078,2065.1,2065.0,2.2459]
[1742971375802,4.08533,2065.2,2065.1,0.96835]
[1742971376002,0.96833,2065.2,2065.1,2.90115]
[1742971376597,0.96833,2065.2,2065.1,1.2775]
[1742971377002,0.96833,2065.2,2065.1,2.24585]
[1742971378402,0.96833,2065.2,2065.1,1.2775]
[1742971379901,0.96833,2065.2,2065.1,2.24585]
[1742971380501,0.96833,2065.2,2065.1,1.2775]
[1742971381813,0.96833,2065.2,2065.1,2.24585]
[1742971382012,0.96833,2065.2,2065.1,1.2775]
[1742971382609,0.96833,2065.2,2065.1,1.9187]
[1742971384417,1.3004,2065.3,2065.1,2.88703]
[1742971384605,0.96831,2065.2,2065.1,1.60953]
[1742971385813,2.2687,2065.3,2065.1,1.60953]
[1742971386007,0.96831,2065.2,2065.1,1.60953]
[1742971386216,2.34691,2065.2,2065.1,1.60953]
[1742971391210,2.34691,2065.2,2065.1,0.6412]
[1742971391419,0.9684,2065.0,2064.9,41.4553]
[1742971391912,0.9684,2065.0,2064.9,42.42375]
[1742971392117,2.3262,2065.0,2064.9,42.42375]
[1742971392617,2.3262,2065.0,2064.9,41.4553]
[1742971392806,2.3262,2065.0,2064.9,40.8]
[1742971394814,2.3262,2065.0,2064.8,1.66716]
[1742971395013,2.37635,2064.9,2064.8,0.96846]
[1742971395416,2.37635,2064.9,2064.8,40.8]
[1742971396415,0.96852,2064.8,2064.6,1.3375]
[1742971396621,5.0477,2064.8,2064.7,0.96854]
[1742971396817,6.0162,2064.8,2064.6,43.10605]
[1742971397020,1.2811,2064.7,2064.6,43.10605]
[1742971398718,2.24964,2064.7,2064.6,43.10605]
[1742971400512,2.24964,2064.7,2064.6,44.43455]
[1742971404216,1.2811,2064.7,2064.6,44.43455]
[1742971405620,2.24964,2064.7,2064.6,44.43455]
[1742971406221,1.2811,2064.7,2064.6,44.43455]
[1742971406818,2.24964,2064.7,2064.6,44.43455]
[1742971407018,2.24964,2064.7,2064.6,43.466]
[1742971407222,2.24964,2064.7,2064.6,44.43459]
[1742971407417,2.24964,2064.7,2064.6,42.8136]
[1742971407621,2.24964,2064.7,2064.6,43.78219]
[1742971407822,2.24964,2064.7,2064.6,42.8136]
[1742971408020,2.24964,2064.7,2064.6,43.78219]
[1742971409424,2.24964,2064.7,2064.6,42.8136]
[1742971410023,2.24964,2064.7,2064.6,42.1285]
[1742971413726,2.24964,2064.7,2064.6,43.09709]
[1742971413925,2.24964,2064.7,2064.6,42.1285]
[1742971415422,2.24964,2064.7,2064.6,43.09709]
[1742971421227,2.24964,2064.7,2064.6,42.1285]
[1742971422133,2.24964,2064.7,2064.6,43.09709]
[1742971425934,1.2811,2064.7,2064.6,43.09709]
[1742971426137,2.24964,2064.7,2064.6,43.09709]
[1742971426819,2.24964,2064.7,2064.6,42.1285]
[1742971427021,2.24964,2064.7,2064.6,43.09709]
[1742971427434,2.24964,2064.7,2064.6,42.1285]
[1742971427827,2.24964,2064.7,2064.6,43.09709]
[1742971428634,2.24964,2064.7,2064.6,42.1285]
[1742971430525,2.24964,2064.7,2064.6,43.09709]
[1742971430926,2.24964,2064.7,2064.6,42.1285]
[1742971431731,2.24964,2064.7,2064.6,1.3285]
[1742971434141,2.24964,2064.7,2064.6,2.29709]
[1742971434638,2.24964,2064.7,2064.6,1.3285]
[1742971441539,2.24964,2064.7,2064.6,2.29709]
[1742971441745,3.2078,2064.9,2064.6,1.3285]
[1742971441941,3.2078,2064.9,2064.8,0.9685]
[1742971442343,3.2078,2064.9,2064.8,3.0234]
[1742971442843,3.116,2065.0,2064.9,0.96845]
[1742971443034,3.116,2065.0,2064.9,2.37655]
[1742971443231,4.0844,2065.0,2064.9,1.4081]
[1742971443435,3.116,2065.0,2064.9,2.37655]
[1742971444139,1.389,2065.3,2064.9,2.37655]
[1742971444334,0.96826,2065.3,2065.2,0.96831]
[1742971444537,4.08426,2065.3,2065.2,0.96831]
[1742971445238,4.08426,2065.3,2065.2,2.24341]
[1742971446343,4.08426,2065.3,2065.2,1.2751]
[1742971446546,5.44166,2065.3,2065.2,1.2751]
[1742971448246,5.44166,2065.3,2065.2,2.24341]
[1742971448750,4.4734,2065.3,2065.2,2.24341]
[1742971449355,3.8897,2065.4,2065.3,0.96826]
[1742971449649,9.38374,2065.4,2065.3,1.3565]
[1742971450043,8.4155,2065.4,2065.3,2.32476]
[1742971450854,9.38371,2065.4,2065.3,1.3565]
[1742971451453,9.38371,2065.4,2065.3,2.32476]
[1742971452153,9.38371,2065.4,2065.3,1.3565]
[1742971455447,6.26871,2065.4,2065.3,1.3565]
[1742971455651,6.26871,2065.4,2065.3,2.32476]
[1742971455652,5.3005,2065.4,2065.3,2.32476]
[1742971455852,5.58681,2065.4,2065.3,1.3565]
[1742971456054,4.17601,2065.4,2065.3,2.32476]
[1742971456252,6.3228,2065.4,2065.3,2.32476]
[1742971457052,7.29101,2065.4,2065.3,1.3565]
[1742971458161,7.29101,2065.4,2065.3,2.32476]
[1742971464862,7.29101,2065.4,2065.3,1.3565]
[1742971466365,7.29101,2065.4,2065.3,2.32476]
[1742971467362,7.29101,2065.4,2065.3,1.3565]
[1742971467968,7.98351,2065.4,2065.3,1.3565]
[1742971470860,7.98351,2065.4,2065.3,2.32476]
[1742971471065,7.98351,2065.4,2065.3,1.3565]
[1742971473469,0.9684,2065.0,2064.9,41.76844]
[1742971474569,4.72849,2065.1,2064.9,41.76844]
[1742971474773,4.72849,2065.1,2065.0,0.9684]
[1742971475074,0.9684,2065.0,2064.9,41.76842]
[1742971475465,4.08238,2065.1,2065.0,0.9684]
[1742971475866,4.08238,2065.1,2065.0,2.2742]
[1742971476265,5.38528,2065.1,2065.0,2.2742]
[1742971476773,5.38528,2065.1,2065.0,1.3058]
[1742971478075,0.96845,2064.9,2064.8,0.6893]
[1742971478670,0.96845,2064.9,2064.8,41.4893]
[1742971479576,2.37165,2064.9,2064.8,42.8506]
[1742971482079,2.37165,2064.9,2064.8,2.0506]
[1742971482579,2.37165,2064.9,2064.8,3.0191]
[1742971482775,2.37165,2064.9,2064.8,2.0506]
[1742971483682,2.37165,2064.9,2064.8,3.0191]
[1742971487178,2.37165,2064.9,2064.8,2.0506]
[1742971487881,2.37165,2064.9,2064.8,3.0191]
[1742971489384,2.37165,2064.9,2064.8,2.0506]
[1742971490179,2.37165,2064.9,2064.8,3.0191]
[1742971491487,3.114,2064.9,2064.8,3.0191]
[1742971501393,4.3981,2064.9,2064.8,3.0191]
[1742971503499,3.114,2064.9,2064.8,3.0191]
[1742971503798,3.114,2065.2,2065.1,0.96835]
[1742971504602,3.114,2065.2,2065.1,1.66695]
[1742971504808,3.114,2065.2,2065.1,3.07195]
[1742971508003,1.2862,2065.3,2065.2,0.96831]
[1742971508309,4.3992,2065.3,2065.2,2.25821]
[1742971519412,4.3992,2065.3,2064.9,3.2078]
[1742971519613,0.9684,2065.0,2064.9,0.96841]
[1742971519914,4.0814,2065.0,2064.9,0.96841]
[1742971520214,0.96845,2064.9,2064.8,43.15018]
[1742971520411,6.88605,2064.9,2064.8,40.8]
[1742971520616,6.88605,2064.9,2064.6,2.33455]
[1742971520617,0.96854,2064.7,2064.6,2.33455]
[1742971520917,2.35462,2064.8,2064.7,0.96854]
[1742971521107,4.08152,2064.8,2064.7,40.8]
[1742971526419,4.08152,2064.8,2064.7,42.1856]
[1742971529423,7.28932,2064.8,2064.7,42.1856]
[1742971529621,0.96867,2064.5,2064.3,0.97598643]
[1742971529921,3.113,2064.4,2064.3,2.28018643]
[1742971530218,3.113,2064.4,2064.3,43.08018643]
[1742971534724,4.08168,2064.4,2064.3,43.08018643]
[1742971534927,3.113,2064.4,2064.3,43.08018643]
[1742971536120,4.08168,2064.4,2064.3,43.08018643]
[1742971537422,4.08168,2064.4,2064.3,0.00727643]
[1742971537628,7.28948,2064.4,2064.3,0.00727643]
[1742971540519,8.57778,2064.4,2064.3,0.00727643]
[1742971546130,0.96868,2064.5,2064.3,0.00727643]
[1742971546332,13.7258,2064.8,2064.3,1.41887643]
[1742971546530,5.37027,2064.7,2064.3,1.41887643]
[1742971546831,5.37027,2064.7,2064.4,40.8]
[1742971547039,0.96859,2064.6,2064.5,3.0584]
[1742971547234,0.96859,2064.6,2064.5,2.794]
[1742971547535,2.25729,2064.6,2064.5,2.794]
[1742971548320,2.25729,2064.6,2064.5,3.76264]
[1742971555433,2.25729,2064.6,2064.5,2.794]
[1742971556037,2.25729,2064.6,2064.5,1.4116]
[1742971557138,0.96868,2064.4,2064.3,0.67467643]
[1742971557441,7.28948,2064.4,2064.3,2.34680643]
[1742971558444,8.68988,2064.4,2064.3,2.34680643]
[1742971558743,8.68988,2064.4,2064.3,1.37807643]
[1742971559242,8.68988,2064.4,2064.3,2.79297643]
[1742971559835,8.68988,2064.4,2064.3,2.12557643]
[1742971560133,9.37018,2064.4,2064.3,2.12557643]
[1742971564235,9.37018,2064.4,2064.3,1.42217643]
[1742971564543,6.25718,2064.4,2064.3,1.42217643]
[1742971564849,3.113,2064.4,2064.3,2.39090643]
[1742971565046,3.2078,2064.7,2064.6,0.96859]
[1742971565251,6.3208,2064.7,2064.6,0.96859]
[1742971565938,6.3208,2064.7,2064.6,2.33229]
[1742971566938,7.28934,2064.7,2064.6,2.33229]
[1742971567247,7.28934,2064.7,2064.6,1.3637]
[1742971567839,7.28934,2064.7,2064.6,2.33229]
[1742971568645,7.28834,2064.7,2064.6,2.33229]
[1742971569037,6.3198,2064.7,2064.6,2.33229]
[1742971569749,3.2078,2064.7,2064.6,2.33229]
[1742971570243,0.96844,2065.0,2064.9,0.96845]
[1742971570449,3.112,2065.0,2064.9,0.96845]
[1742971570641,4.0804,2065.0,2064.9,0.96845]
[1742971570847,0.96847,2064.9,2064.8,0.96848]
[1742971571147,0.96847,2064.9,2064.5,6.28298]
[1742971571148,0.96843,2065.0,2064.9,0.96845]
[1742971571448,4.08043,2065.0,2064.9,0.96845]
[1742971571838,3.112,2065.0,2064.9,0.96845]
[1742971572745,4.5137,2065.0,2064.9,0.96845]
[1742971573146,3.112,2065.0,2064.9,0.96845]
[1742971573347,2.37007,2065.1,2065.0,0.9684]
[1742971573548,5.48207,2065.1,2065.0,0.9684]
[1742971573749,4.5137,2065.1,2065.0,0.9684]
[1742971574250,5.48205,2065.1,2065.0,0.9684]
[1742971574836,4.5137,2065.1,2065.0,0.9684]
[1742971576146,3.8662,2065.2,2065.1,0.96835]
[1742971576349,6.3198,2065.2,2065.1,0.96835]
[1742971577243,3.2078,2065.2,2065.1,0.96835]
[1742971578153,3.2078,2065.2,2065.1,41.76835]
[1742971578543,4.17611,2065.2,2065.1,41.76835]
[1742971578850,5.57251,2065.2,2065.1,41.76835]
[1742971579452,4.6042,2065.2,2065.1,41.76835]
[1742971580941,3.2078,2065.2,2065.1,41.76835]
[1742971581653,1.3964,2065.4,2065.3,0.96826]
[1742971581948,4.5074,2065.4,2065.3,0.96826]
[1742971582547,5.47561,2065.4,2065.3,0.96826]
[1742971582752,4.5074,2065.4,2065.3,0.96826]
[1742971583649,5.47561,2065.4,2065.3,0.96826]
[1742971583848,4.5074,2065.4,2065.3,0.96826]
[1742971585845,1.3964,2065.4,2065.3,0.96826]
[1742971586046,3.2078,2065.5,2065.4,0.96821]
[1742971586245,6.3188,2065.5,2065.4,0.96821]
[1742971587254,7.28697,2065.5,2065.4,0.96821]
[1742971588154,6.3188,2065.5,2065.4,0.96821]
[1742971588355,7.28697,2065.5,2065.4,0.96821]
[1742971589654,7.28697,2065.5,2065.4,1.62051]
[1742971590656,7.28697,2065.5,2065.4,2.95151]
[1742971591856,6.3188,2065.5,2065.4,2.95151]
[1742971592258,8.64337,2065.5,2065.4,2.95151]
[1742971592657,8.64337,2065.5,2065.4,1.9833]
[1742971593054,8.64337,2065.5,2065.1,43.22086]
[1742971593055,0.96828,2065.3,2065.1,40.8]
[1742971593260,0.96828,2065.3,2065.2,2.29929]
[1742971593464,0.96828,2065.3,2065.2,1.331]
[1742971595563,0.96828,2065.3,2065.1,41.76833]
[1742971595564,0.96831,2065.2,2065.1,40.8]
[1742971595763,7.28611,2065.2,2065.1,42.1518]
[1742971596161,0.96844,2065.0,2064.8,4.601]
[1742971596358,0.96844,2065.0,2064.9,2.32025]
[1742971596758,0.9684,2065.0,2064.9,43.12025]
[1742971596958,1.6477,2065.0,2064.9,43.12025]
[1742971598461,1.6477,2065.0,2064.9,42.1518]
[1742971599967,1.6477,2065.0,2064.9,43.12025]
[1742971600767,1.6477,2065.0,2064.9,42.1518]
[1742971601462,1.6477,2065.0,2064.9,40.8]
[1742971602264,1.6477,2065.0,2064.6,1.3761]
[1742971602265,0.96854,2064.7,2064.6,1.3761]
[1742971602460,7.28634,2064.7,2064.6,1.3761]
[1742971602661,0.96868,2064.4,2064.3,0.66857643]
[1742971602866,0.96868,2064.4,2064.3,2.04847643]
[1742971603264,0.96868,2064.4,2064.3,42.84847643]
[1742971603563,4.07868,2064.4,2064.3,42.84847643]
[1742971603760,3.11,2064.4,2064.3,43.81720643]
[1742971605163,4.07868,2064.4,2064.3,43.81720643]
[1742971605958,3.11,2064.4,2064.3,43.81720643]
[1742971606153,4.07868,2064.4,2064.3,40.80727643]
[1742971606468,4.07868,2064.4,2064.3,42.09627643]
[1742971607168,4.07868,2064.4,2064.3,43.06500643]
[1742971607871,3.11,2064.4,2064.3,43.06500643]
[1742971608261,1.66743,2064.6,2064.5,0.96864]
[1742971608566,0.96864,2064.5,2064.4,2.94975]
[1742971610164,4.77742,2064.6,2064.5,0.96864]
[1742971610358,4.77742,2064.6,2064.5,1.3086]
[1742971610569,6.12842,2064.6,2064.5,1.3086]
[1742971611268,6.12842,2064.6,2064.5,2.27724]
[1742971612866,6.12942,2064.6,2064.5,2.27724]
[1742971613270,6.12942,2064.6,2064.5,1.3086]
[1742971613670,5.1608,2064.6,2064.3,1.66077643]
[1742971613870,0.96868,2064.4,2064.3,1.66077643]
[1742971614171,0.96868,2064.4,2064.3,41.49207643]
[1742971615073,0.96868,2064.4,2064.3,42.46080643]
[1742971615271,2.31748,2064.4,2064.3,43.87580643]
[1742971617770,2.31748,2064.4,2064.3,42.90707643]
[1742971618070,2.31748,2064.4,2064.3,43.87580643]
[1742971623480,1.3488,2064.4,2064.3,43.87580643]
[1742971623679,3.8098,2064.6,2064.4,0.96867]
[1742971623872,0.96868,2064.4,2064.3,42.46077643]
[1742971624981,2.36317,2064.5,2064.4,0.96868]
[1742971625780,0.96868,2064.4,2064.3,42.46077643]
[1742971626081,2.32898,2064.4,2064.3,42.46077643]
[1742971627278,1.3603,2064.4,2064.3,42.46077643]
[1742971627882,2.32898,2064.4,2064.3,42.46077643]
[1742971629272,1.3603,2064.4,2064.3,42.46077643]
[1742971630089,2.32898,2064.4,2064.3,42.46077643]
[1742971630286,1.3603,2064.4,2064.3,42.46077643]
[1742971631083,2.32898,2064.4,2064.3,42.46077643]
[1742971633385,2.32898,2064.4,2064.3,1.66077643]
[1742971638186,1.3603,2064.4,2064.3,1.66077643]
[1742971638384,2.32898,2064.4,2064.3,1.66077643]
[1742971640281,1.3603,2064.4,2064.3,1.66077643]
[1742971640684,1.3603,2064.4,2064.3,2.93917643]
[1742971642992,3.2078,2064.9,2064.8,0.96848]
[1742971643290,9.0262,2064.9,2064.8,0.96848]
[1742971643883,9.99469,2064.9,2064.7,2.92532]
[1742971644079,8.63395,2064.9,2064.8,1.3068]
[1742971654699,8.63395,2064.9,2064.8,2.2753]
[1742971654891,3.2078,2064.9,2064.8,2.2753]
[1742971655195,6.3178,2064.9,2064.8,2.2753]
[1742971658089,7.28625,2064.9,2064.8,2.2753]
[1742971658287,6.3178,2064.9,2064.8,2.2753]
[1742971658908,7.28625,2064.9,2064.8,2.2753]
[1742971659093,6.3178,2064.9,2064.8,2.2753]
[1742971659988,7.28625,2064.9,2064.8,2.2753]
[1742971660192,6.3178,2064.9,2064.8,2.2753]
[1742971660593,7.6493,2064.9,2064.8,2.2753]
[1742971660901,7.6493,2064.9,2064.8,1.3068]
[1742971660902,8.61775,2064.9,2064.8,1.3068]
[1742971661103,9.29115,2064.9,2064.8,2.2753]
[1742971661394,9.29115,2064.9,2064.8,1.3068]
[1742971661902,9.29115,2064.9,2064.8,2.2753]
[1742971663697,8.3227,2064.9,2064.8,2.2753]
[1742971663901,7.6493,2064.9,2064.8,2.2753]
[1742971664102,6.3178,2064.9,2064.8,2.2753]
[1742971665401,6.3168,2064.9,2064.8,2.2753]
[1742971667008,7.703,2064.9,2064.8,2.2753]
[1742971671808,4.17601,2065.5,2065.4,0.96821]
[1742971672002,0.96823,2065.4,2065.3,0.96825]
[1742971672611,0.96823,2065.4,2065.3,41.76825]
[1742971672906,4.07723,2065.4,2065.3,41.76825]
[1742971673095,5.42473,2065.4,2065.3,41.76825]
[1742971674004,5.42473,2065.4,2065.3,43.16445]
[1742971674512,5.42473,2065.4,2065.3,42.1962]
[1742971675913,5.42473,2065.4,2065.3,43.16446]
[1742971676512,5.42473,2065.4,2065.3,42.1962]
[1742971677407,5.42473,2065.4,2065.3,43.16446]
[1742971678112,5.42473,2065.4,2065.3,42.1962]
[1742971678612,5.42473,2065.4,2065.3,43.16446]
[1742971681713,5.42473,2065.4,2065.3,42.1962]
[1742971684719,5.42473,2065.4,2065.3,43.16446]
[1742971686112,5.42473,2065.4,2065.3,42.1962]
[1742971686709,5.42473,2065.4,2065.3,43.16446]
[1742971686909,5.42473,2065.4,2065.3,42.1962]
[1742971687320,5.42473,2065.4,2065.3,43.16446]
[1742971688019,5.42473,2065.4,2065.3,42.1962]
[1742971689015,5.42473,2065.4,2065.3,43.16446]
[1742971689214,5.42473,2065.4,2065.3,42.1962]
[1742971690622,5.42473,2065.4,2065.3,43.16446]
[1742971690822,5.42473,2065.4,2065.3,42.1962]
[1742971694124,5.42473,2065.4,2065.3,43.16446]
[1742971694317,5.42473,2065.4,2065.3,42.1962]
[1742971697941,5.42473,2065.4,2065.3,43.16446]
[1742971698433,5.42473,2065.4,2065.3,43.80826]
[1742971698640,5.42473,2065.4,2065.3,42.84]
[1742971698833,5.42473,2065.4,2065.3,43.80826]
[1742971699138,3.109,2065.4,2065.3,43.80826]
[1742971700130,4.07721,2065.4,2065.3,43.80826]
[1742971700327,3.109,2065.4,2065.3,43.80826]
[1742971700629,4.07721,2065.4,2065.3,43.80826]
[1742971701828,5.39221,2065.4,2065.3,43.80826]
[1742971702137,4.424,2065.4,2065.3,43.80826]
[1742971702528,3.109,2065.4,2065.3,43.80826]
[1742971703136,4.07721,2065.4,2065.3,43.80826]
[1742971704938,4.5228,2065.5,2065.4,0.96821]
[1742971705133,0.96804,2065.8,2065.7,0.96804]
[1742971705333,0.96809,2065.7,2065.6,0.96809]
[1742971705534,7.28281,2065.9,2065.8,0.96803]
[1742971705834,0.96803,2065.8,2065.7,0.96804]
[1742971706030,0.96803,2065.8,2065.7,2.37155]
[1742971706234,8.67881,2065.9,2065.8,0.96803]
[1742971706435,8.67881,2065.9,2065.8,2.29793]
[1742971708445,8.67881,2065.9,2065.8,1.3299]
[1742971708748,8.67881,2065.9,2065.8,2.29793]
[1742971708942,8.67881,2065.9,2065.8,1.3299]
[1742971709649,8.67881,2065.9,2065.8,2.0087]
[1742971713153,7.7108,2065.9,2065.8,2.0087]
[1742971720454,8.67878,2065.9,2065.8,2.0087]
[1742971723160,7.7108,2065.9,2065.8,2.0087]
[1742971729572,7.7108,2065.9,2065.8,1.3299]
[1742971731270,8.67878,2065.9,2065.8,1.3299]
[1742971732367,7.7108,2065.9,2065.8,1.3299]
[1742971733377,7.7108,2065.9,2065.7,1.3639]
[1742971733563,1.4048,2065.8,2065.7,1.3639]
[1742971735169,4.386,2065.9,2065.7,1.3639]
[1742971736274,0.96803,2065.8,2065.7,2.33196]
[1742971740088,0.96803,2065.8,2065.7,1.3639]
[1742971741293,5.35401,2065.9,2065.7,2.33195]
[1742971741591,5.35401,2065.9,2065.7,2.33194]
[1742971741796,7.5938,2065.9,2065.6,1.3388]
[1742971741996,2.27344,2065.8,2065.7,0.96806]
[1742971742888,1.3054,2065.8,2065.7,0.96806]
[1742971743193,2.27346,2065.8,2065.6,1.3388]
[1742971743396,2.27346,2065.8,2065.7,0.96807]
[1742971743992,0.96807,2065.7,2065.6,1.3388]
[1742971744195,2.27347,2065.8,2065.6,2.30691]
[1742971744590,1.3335,2065.7,2065.6,2.30691]
[1742971747293,0.96807,2065.8,2065.7,0.96807]
[1742971747593,2.31047,2065.8,2065.7,0.96807]
[1742971750497,1.3424,2065.8,2065.7,0.96807]
[1742971750901,7.2828,2065.9,2065.7,0.96807]
[1742971751099,8.6792,2065.9,2065.7,0.96807]
[1742971751803,1.3964,2065.8,2065.7,0.96807]
[1742971752207,7.2828,2065.9,2065.7,0.96807]
[1742971752402,8.6458,2065.9,2065.7,0.96804]
[1742971752704,1.363,2065.8,2065.7,0.96804]
[1742971754210,2.33103,2065.8,2065.7,0.96804]
[1742971754401,1.363,2065.8,2065.7,0.96804]
[1742971756304,7.6997,2065.9,2065.8,0.96803]
[1742971757703,3.2078,2065.9,2065.8,0.96803]
[1742971758709,4.5144,2065.9,2065.8,0.96803]
[1742971759008,5.48238,2065.9,2065.8,0.96803]
[1742971759507,4.5144,2065.9,2065.8,0.96803]
[1742971760104,5.48238,2065.9,2065.8,0.96803]
[1742971760303,0.96807,2065.7,2065.6,1.3388]
[1742971760509,0.96807,2065.7,2065.6,1.62132]
[1742971760705,0.96807,2065.7,2065.6,2.95882]
[1742971760906,2.97337,2065.7,2065.6,2.30562]
[1742971762104,6.07737,2065.7,2065.6,2.30562]
[1742971769917,6.07737,2065.7,2065.6,1.3375]
[1742971770314,0.96812,2065.6,2065.5,0.00727643]
[1742971770512,2.25502,2065.6,2065.5,2.36484643]
[1742971771307,2.25502,2065.6,2065.5,1.39667643]
[1742971771917,5.46282,2065.6,2065.5,0.00727643]
[1742971772323,0.96821,2065.4,2065.3,40.8]
[1742971772523,4.07221,2065.4,2065.3,40.8]
[1742971772723,0.9685,2064.8,2064.7,3.2078]
[1742971772925,0.9685,2064.8,2064.4,2.42168]
[1742971772926,4.07247,2064.9,2064.8,0.9685]
[1742971773118,4.07247,2064.9,2064.8,41.7685]
[1742971773424,5.35937,2064.9,2064.8,41.7685]
[1742971773818,4.3909,2064.9,2064.8,41.7685]
[1742971774011,3.104,2064.9,2064.8,41.7685]
[1742971774213,3.104,2064.9,2064.8,42.4581]
[1742971775121,5.47295,2064.9,2064.8,41.4896]
[1742971775322,6.14025,2064.9,2064.8,41.7685]
[1742971776127,6.14025,2064.9,2064.8,40.8]
[1742971776320,6.14025,2064.9,2064.8,41.7685]
[1742971776516,6.14025,2064.9,2064.8,43.061]
[1742971776924,6.14025,2064.9,2064.8,42.0925]
[1742971777827,6.9975,2065.0,2064.9,0.96845]
[1742971778016,8.2924,2065.0,2064.9,2.91345]
[1742971778217,8.2924,2065.0,2064.9,3.60035]
[1742971779031,9.2608,2065.0,2064.9,3.60035]
[1742971780532,0.96816,2065.6,2065.5,0.96817]
[1742971780718,2.97766,2065.6,2065.4,4.17598]
[1742971780922,2.97766,2065.6,2065.5,1.29]
[1742971781731,2.97766,2065.6,2065.5,2.25817]
[1742971781926,2.0095,2065.6,2065.5,2.25817]
[1742971782628,4.07205,2065.8,2065.7,0.96807]
[1742971783330,5.45725,2065.8,2065.7,0.96807]
[1742971784827,5.45725,2065.8,2065.6,2.26999]
[1742971785029,5.45725,2065.8,2065.7,0.96807]
[1742971785230,5.45725,2065.8,2065.7,2.26997]
[1742971786922,5.45725,2065.8,2065.7,1.3019]
[1742971787115,5.45725,2065.8,2065.7,2.26997]
[1742971787315,2.35325,2065.8,2065.7,1.3019]
[1742971787929,2.35325,2065.8,2065.7,2.26997]
[1742971788124,2.35325,2065.8,2065.7,1.3019]
[1742971793626,2.35325,2065.8,2065.7,1.9954]
[1742971796526,0.96817,2065.5,2065.4,4.176]
[1742971796827,0.96817,2065.5,2065.4,4.8574]
[1742971797028,0.96817,2065.5,2065.4,0.6814]
[1742971797829,0.96817,2065.5,2065.4,2.0307]
[1742971798029,0.96817,2065.5,2065.4,1.3493]
[1742971798338,1.62997,2065.5,2065.4,1.3493]
[1742971809339,2.42054,2065.4,2064.8,44.0078]
[1742971809545,0.9684,2065.0,2064.9,1.3877]
[1742971809739,4.0714,2065.0,2064.9,1.3877]
[1742971810137,3.103,2065.0,2064.9,1.3877]
[1742971810338,4.4242,2065.0,2064.9,1.3877]
[1742971810741,4.4242,2065.0,2064.9,2.35615]
[1742971810941,3.103,2065.0,2064.9,2.35615]